fUST/lending_fUST_20240202
["ID","MTS","AMOUNT","RATE_DAILY","PERIOD"]
[313165417,1706848244031,-205.17336082,0.00021999,2]
[313165418,1706848244042,-155.19759418,0.00021999,2]
[313165419,1706848244051,-360.370955,0.00021999,2]
[313165420,1706848244064,-360.370955,0.00021999,2]
[313165421,1706848244074,-769.915204,0.00021999,2]
[313165422,1706848244083,-371.59951218,0.00021999,2]
[313165423,1706848244095,-398.31569182,0.00021999,2]
[313165424,1706848244104,-769.915204,0.00021999,2]
[313165425,1706848244113,-726.15817148,0.00021999,2]
[313165426,1706848244124,-43.75703252,0.00021999,2]
[313165427,1706848244134,-769.915204,0.00021999,2]
[313165428,1706848244143,-769.915204,0.00021999,2]
[313165429,1706848244152,-769.915204,0.00021999,2]
[313165430,1706848244165,-769.915204,0.00021999,2]
[313165431,1706848244174,-769.915204,0.00021999,2]
[313165432,1706848244183,-156.067362,0.00021999,2]
[313165559,1706849438500,-154.98450155,0.00019898,2]
[313165561,1706849438510,-470.91549845,0.00019899,2]
[313165577,1706849441674,-536.57427247,0.00019899,2]
[313165578,1706849441685,-154.98450155,0.00020265,4]
[313165579,1706849441695,-433.099,0.00021325,2]
[313165580,1706849441704,-300.0,0.00021999,2]
[313165581,1706849441714,-1829.60430493,0.00021999,2]
[313165582,1706849441723,-1574.99266599,0.00022,2]
[313165583,1706849441734,-2352.47600578,0.00022293,2]
[313165589,1706849443436,-8640.0139612,0.00022293,2]
[313165590,1706849443445,-10113.72989275,0.00022294,2]
[313165591,1706849443455,-292.47937568,0.0002241,2]
[313165592,1706849443464,-292.47937567,0.00022425,2]
[313165593,1706849443474,-292.47937567,0.00022439,2]
[313165594,1706849443483,-292.47937567,0.00022454,2]
[313165595,1706849443492,-292.47937567,0.00022468,2]
[313165596,1706849443502,-26.12060863,0.00022508,2]
[313165608,1706849446461,-7442.33970044,0.00022508,2]
[313165612,1706849541356,174.0,0.0002849,61]
[313165613,1706849541793,174.0,0.0002848,61]
[313165614,1706849542240,174.0,0.0002847,61]
[313165620,1706849900191,150.5,0.0002849,61]
[313165621,1706849900655,150.5,0.0002848,61]
[313165622,1706849901116,150.5,0.0002847,61]
[313165634,1706850261232,150.5,0.00028488,61]
[313165635,1706850261557,150.5,0.00028478,61]
[313165636,1706850261990,150.5,0.00028468,61]
[313165683,1706850638605,-273.11559368,0.00020265,2]
[313165685,1706850638615,-154.98450155,0.00020266,4]
[313165686,1706850638624,-567.96409351,0.00020408,2]
[313165692,1706850641883,-103.69575377,0.00020408,2]
[313165693,1706850641903,-320.63008069,0.00021998,2]
[313165694,1706850641918,-300.0,0.00021999,2]
[313165695,1706850641928,-423.79505015,0.00021999,2]
[313165696,1706850641938,-2189.32829738,0.00022508,2]
[313165720,1706850643563,-6340.51400535,0.00022508,2]
[313165721,1706850643573,-463.04744972,0.00022517,2]
[313165722,1706850643583,-155.36529014,0.00022518,2]
[313165723,1706850643592,-327.7663532,0.00022518,2]
[313165724,1706850643601,-1277.26505294,0.00022518,2]
[313165725,1706850643610,-208.9605688,0.00022518,2]
[313165726,1706850643618,-1584.78217682,0.00022519,2]
[313165727,1706850643628,-296.05899781,0.00022519,2]
[313165728,1706850643639,-303.12316705,0.00022519,2]
[313165729,1706850643648,-155.74627398,0.00022519,2]
[313165730,1706850643662,-909.59511494,0.00022519,2]
[313165731,1706850643676,-604.88832557,0.00022519,2]
[313165732,1706850643696,-149.33835013,0.00022519,2]
[313165733,1706850643709,-156.20701776,0.00022519,2]
[313165734,1706850643721,-696.45463211,0.00022519,2]
[313165754,1706850724492,1014.0,0.00028488,61]
[313165755,1706850724940,1014.0,0.00028478,61]
[313165756,1706850725399,1014.0,0.00028468,61]
[313165757,1706851221739,202.0,0.00028488,61]
[313165758,1706851222161,202.0,0.00028478,61]
[313165759,1706851222635,202.0,0.00028468,61]
[313165762,1706851581368,150.5,0.00028488,61]
[313165763,1706851581810,150.5,0.00028478,61]
[313165764,1706851582279,150.5,0.00028468,61]
[313165831,1706851837915,-213.84738694,0.00021455,2]
[313165832,1706851837927,-273.11559368,0.00021456,2]
[313165833,1706851837938,-24900.0,0.00021462,2]
[313165834,1706851837949,-294.80885956,0.00022,4]
[313165835,1706851837962,-1625.66676864,0.00022468,2]
[313165836,1706851837973,-500.0,0.000225,2]
[313165837,1706851837983,-335.90750035,0.00022519,2]
[313165838,1706851837995,-155.50707279,0.00022519,2]
[313165839,1706851838005,-168.22680673,0.00022519,2]
[313165840,1706851838017,-160.64612412,0.00022519,2]
[313165841,1706851838028,-155.53999001,0.00022519,2]
[313165842,1706851838038,-3747.87536289,0.00022519,2]
[313165843,1706851838050,-182.37480043,0.00022519,2]
[313165844,1706851838061,-690.53319597,0.00022519,2]
[313165845,1706851838071,-262.95815707,0.00022519,2]
[313165846,1706851838081,-167.93472646,0.00022519,2]
[313165847,1706851838091,-3556.94492869,0.0002252,2]
[313165848,1706851838105,-730.09711842,0.0002252,2]
[313165867,1706851842857,-9007.98584196,0.0002252,2]
[313165868,1706851842866,-160.31460777,0.00022566,2]
[313165869,1706851842876,-2106.13490818,0.00022566,2]
[313165870,1706851842885,-5000.0,0.00022568,2]
[313165871,1706851842895,-5000.0,0.00022568,2]
[313165872,1706851842904,-3495.04710247,0.00022568,2]
[313165893,1706851845832,-538.61450309,0.00022558,3]
[313165894,1706851941361,1401.0,0.00028488,61]
[313165895,1706851941801,1401.0,0.00028478,61]
[313165896,1706851942251,1401.0,0.00028468,61]
[313165902,1706852301360,981.0,0.00028488,61]
[313165903,1706852301828,981.0,0.00028478,61]
[313165904,1706852302283,981.0,0.00028468,61]
[313165912,1706852661020,687.0,0.00028488,61]
[313165913,1706852661461,687.0,0.00028478,61]
[313165914,1706852661893,687.0,0.00028468,61]
[313165924,1706853021413,480.0,0.00028488,61]
[313165925,1706853021856,480.0,0.00028478,61]
[313165926,1706853022296,480.0,0.00028468,61]
[313165979,1706853038037,-155.0,0.00019413,2]
[313165980,1706853038046,-273.11559368,0.00019414,2]
[313165981,1706853038056,-20909.96703579,0.00019414,2]
[313165982,1706853038066,-213.84738694,0.00019415,2]
[313165983,1706853038075,-7974.33759176,0.00019419,2]
[313165984,1706853038085,-5894.4236478,0.00019432,2]
[313165985,1706853038094,-169.051891,0.00021918,2]
[313165986,1706853038104,-2036.5412467,0.00022,2]
[313165987,1706853038113,-201.52824782,0.00022358,2]
[313165988,1706853038123,-6088.89,0.00022448,3]
[313165989,1706853038132,-155.50371736,0.00022453,2]
[313165990,1706853038141,-488.89820596,0.00022456,2]
[313165991,1706853038151,-151.0,0.00022458,2]
[313165992,1706853038160,-159.248382,0.00022458,2]
[313165993,1706853038169,-159.248382,0.00022458,2]
[313165994,1706853038178,-159.248382,0.00022458,2]
[313165995,1706853038187,-159.248382,0.00022458,2]
[313165996,1706853038198,-159.248382,0.00022458,2]
[313165997,1706853038207,-159.248382,0.00022458,2]
[313165998,1706853038216,-159.248382,0.00022458,2]
[313165999,1706853038226,-159.248382,0.00022458,2]
[313166000,1706853038235,-693.390483,0.00022458,2]
[313166001,1706853038245,-693.390483,0.00022458,2]
[313166002,1706853038254,-693.390483,0.00022458,2]
[313166003,1706853038263,-693.390483,0.00022458,2]
[313166004,1706853038272,-693.390483,0.00022458,2]
[313166005,1706853038281,-693.390483,0.00022458,2]
[313166006,1706853038290,-693.390483,0.00022458,2]
[313166007,1706853038300,-693.390483,0.00022458,2]
[313166008,1706853038309,-151.826146,0.00022458,2]
[313166009,1706853038318,-3414.275328,0.00022458,2]
[313166010,1706853038327,-3414.275328,0.00022458,2]
[313166011,1706853038336,-3414.275328,0.00022458,2]
[313166012,1706853038346,-3414.275328,0.00022458,2]
[313166013,1706853038354,-3414.275328,0.00022458,2]
[313166014,1706853038363,-3414.275328,0.00022458,2]
[313166015,1706853038372,-3414.275328,0.00022458,2]
[313166016,1706853038486,-3414.275328,0.00022458,2]
[313166017,1706853038495,-151.0,0.00022458,2]
[313166018,1706853038504,-151.0,0.00022458,2]
[313166019,1706853038514,-151.0,0.00022458,2]
[313166020,1706853038524,-60761.3305721,0.00022468,2]
[313166021,1706853038533,-151.0,0.00022468,2]
[313166022,1706853038541,-151.0,0.00022468,2]
[313166023,1706853038551,-159.248382,0.00022468,2]
[313166024,1706853038561,-159.248382,0.00022468,2]
[313166025,1706853038573,-159.248382,0.00022468,2]
[313166026,1706853038583,-159.248382,0.00022468,2]
[313166027,1706853038593,-159.248382,0.00022468,2]
[313166028,1706853038603,-159.248382,0.00022468,2]
[313166029,1706853038612,-693.390483,0.00022468,2]
[313166030,1706853038620,-693.390483,0.00022468,2]
[313166031,1706853038630,-693.390483,0.00022468,2]
[313166032,1706853038639,-693.390483,0.00022468,2]
[313166033,1706853038648,-693.390483,0.00022468,2]
[313166034,1706853038658,-693.390483,0.00022468,2]
[313166035,1706853038670,-3414.275328,0.00022468,2]
[313166036,1706853038679,-3414.275328,0.00022468,2]
[313166037,1706853038689,-3414.275328,0.00022468,2]
[313166038,1706853038700,-3414.275328,0.00022468,2]
[313166039,1706853038709,-3414.275328,0.00022468,2]
[313166040,1706853038718,-3414.275328,0.00022468,2]
[313166041,1706853038727,-169.09603256,0.000225,2]
[313166042,1706853038737,-156.8878079,0.000225,2]
[313166043,1706853038750,-153.5252571,0.000225,2]
[313166044,1706853038760,-160.6137583,0.000225,2]
[313166045,1706853038769,-157.2604961,0.000225,2]
[313166046,1706853038780,-402.0743214,0.000225,2]
[313166047,1706853038789,-500.0,0.000225,2]
[313166048,1706853038799,-3414.275328,0.000225,2]
[313166049,1706853038808,-3414.275328,0.000225,2]
[313166050,1706853038817,-150.0,0.000225,2]
[313166051,1706853038826,-247.549141,0.00022556,2]
[313166052,1706853038836,-159.248382,0.00022556,2]
[313166053,1706853038845,-159.248382,0.00022556,2]
[313166054,1706853038855,-693.390483,0.00022556,2]
[313166055,1706853038864,-693.390483,0.00022556,2]
[313166056,1706853038874,-3414.275328,0.00022556,2]
[313166057,1706853038883,-3414.275328,0.00022556,2]
[313166058,1706853038892,-159.248382,0.00022558,2]
[313166059,1706853038902,-159.248382,0.00022558,2]
[313166060,1706853038911,-693.390483,0.00022558,2]
[313166061,1706853038921,-693.390483,0.00022558,2]
[313166062,1706853038931,-3414.275328,0.00022558,2]
[313166063,1706853038940,-3414.275329,0.00022558,2]
[313166064,1706853038950,-159.248382,0.00022565,2]
[313166065,1706853038959,-159.248379,0.00022565,2]
[313166066,1706853038968,-500.0,0.00022565,2]
[313166067,1706853038977,-500.0,0.00022565,2]
[313166068,1706853038986,-500.0,0.00022565,2]
[313166069,1706853038996,-500.0,0.00022565,2]
[313166070,1706853039005,-428.30415912,0.00022565,2]
[313166071,1706853039014,-181.97270019,0.00022566,2]
[313166072,1706853039024,-155.18287714,0.00022566,2]
[313166073,1706853039033,-622.42120978,0.00022566,2]
[313166074,1706853039042,-1266.95335862,0.00022566,2]
[313166075,1706853039051,-594.59440962,0.00022566,2]
[313166076,1706853039060,-429.13620212,0.00022566,2]
[313166077,1706853039070,-225.71676045,0.00022566,2]
[313166078,1706853039080,-13268.00328189,0.00022566,2]
[313166079,1706853039089,-295.88124969,0.00022566,2]
[313166080,1706853039098,-489.0,0.00022566,2]
[313166081,1706853039107,-155.0294556,0.00022566,2]
[313166082,1706853039117,-155.44834859,0.00022566,2]
[313166083,1706853039126,-2015.19910881,0.00022566,2]
[313166084,1706853039135,-155.55636474,0.00022566,2]
[313166085,1706853039144,-200.04563584,0.00022566,2]
[313166086,1706853039154,-155.60684668,0.00022566,2]
[313166087,1706853039163,-1673.64373957,0.00022566,2]
[313166088,1706853039172,-167.7225111,0.00022566,2]
[313166089,1706853039181,-428.79299162,0.00022566,2]
[313166090,1706853039190,-156.0365716,0.00022566,2]
[313166091,1706853039200,-3998.0860109,0.00022566,2]
[313166092,1706853039209,-717.01628185,0.00022566,2]
[313166093,1706853039218,-159.01858397,0.00022566,2]
[313166094,1706853039227,-167.38911858,0.00022566,2]
[313166095,1706853039236,-2106.9014739,0.00022566,2]
[313166096,1706853039245,-693.390483,0.00022566,2]
[313166097,1706853039255,-693.390492,0.00022566,2]
[313166098,1706853039264,-156.25676297,0.00022567,2]
[313166099,1706853039273,-262.89218231,0.00022567,2]
[313166100,1706853039282,-6344.87830481,0.00022567,2]
[313166101,1706853039291,-367.1879448,0.00022567,2]
[313166102,1706853039300,-3750.94562833,0.00022567,2]
[313166103,1706853039309,-500.0,0.00022567,2]
[313166104,1706853039318,-500.0,0.00022567,2]
[313166105,1706853039327,-500.0,0.00022567,2]
[313166106,1706853039337,-618.33218253,0.00022567,2]
[313166107,1706853039346,-500.0,0.00022567,2]
[313166108,1706853039355,-500.0,0.00022567,2]
[313166109,1706853039364,-364.20677722,0.00022567,2]
[313166110,1706853039373,-500.0,0.00022567,2]
[313166111,1706853039382,-500.0,0.00022567,2]
[313166112,1706853039391,-500.0,0.00022567,2]
[313166113,1706853039400,-435.91018711,0.00022567,2]
[313166114,1706853039409,-540.96427425,0.00022567,2]
[313166116,1706853039418,-500.0,0.00022567,2]
[313166118,1706853039427,-276.65468952,0.00022567,2]
[313166120,1706853039435,-500.0,0.00022567,2]
[313166122,1706853039445,-292.44064772,0.00022567,2]
[313166124,1706853039455,-500.0,0.00022567,2]
[313166125,1706853039464,-500.0,0.00022567,2]
[313166126,1706853039473,-500.0,0.00022567,2]
[313166127,1706853039482,-500.0,0.00022567,2]
[313166128,1706853039491,-500.0,0.00022567,2]
[313166129,1706853039500,-275.52693334,0.00022567,2]
[313166130,1706853039509,-602.30838804,0.00022567,2]
[313166131,1706853039518,-500.0,0.00022567,2]
[313166132,1706853039526,-500.0,0.00022567,2]
[313166133,1706853039535,-500.0,0.00022567,2]
[313166134,1706853039544,-500.0,0.00022567,2]
[313166135,1706853039552,-500.0,0.00022567,2]
[313166136,1706853039561,-500.0,0.00022567,2]
[313166137,1706853039571,-500.0,0.00022567,2]
[313166138,1706853039579,-500.0,0.00022567,2]
[313166139,1706853039589,-500.0,0.00022567,2]
[313166140,1706853039598,-1116.18261128,0.00022568,2]
[313166141,1706853039607,-5000.0,0.00022568,2]
[313166142,1706853039616,-2309.72765372,0.00022568,2]
[313166143,1706853039626,-2590.85759271,0.00022568,2]
[313166144,1706853039635,-625.90982634,0.00022568,2]
[313166145,1706853039643,-155.22744351,0.00022568,2]
[313166146,1706853039652,-273114.15044625,0.00022568,2]
[313166147,1706853039666,-200.29757088,0.00022568,2]
[313166148,1706853039675,-230.41174753,0.00022568,2]
[313166149,1706853039685,-990.62691406,0.00022568,2]
[313166150,1706853039696,-1828.98396681,0.00022568,2]
[313166151,1706853039704,-434.92567218,0.00022568,2]
[313166152,1706853039713,-1626.10877055,0.00022568,2]
[313166153,1706853039724,-5000.0,0.00022568,2]
[313166154,1706853039735,-5000.0,0.00022568,2]
[313166155,1706853039746,-5000.0,0.00022568,2]
[313166156,1706853039755,-5075.79583413,0.00022568,2]
[313166157,1706853039766,-5000.0,0.00022568,2]
[313166158,1706853039776,-1546.13010126,0.00022568,2]
[313166159,1706853039785,-577.0,0.000226,2]
[313166160,1706853039794,-150.305,0.00022771,2]
[313166161,1706853039805,-1264.37412318,0.00023,2]
[313166162,1706853039814,-2501.0,0.00023,2]
[313166163,1706853039823,-5486.8778816,0.00023,2]
[313166164,1706853039833,-500.455711,0.000235,2]
[313166165,1706853039842,-688.2171,0.000237,2]
[313166166,1706853039851,-155.82598415,0.00023725,4]
[313166167,1706853039860,-2094.94437369,0.00023725,2]
[313166168,1706853039869,-312.87729749,0.00023725,2]
[313166169,1706853039879,-151.0,0.00023759,2]
[313166170,1706853039888,-164.9011582,0.00023821,2]
[313166171,1706853039898,-310.00155002,0.00023821,2]
[313166172,1706853039907,-4862.46750387,0.00023824,2]
[313166173,1706853039916,-391.12960171,0.00023991,2]
[313166174,1706853039926,-583.57718123,0.0002414,2]
[313166175,1706853039936,-156.7683487,0.0002414,2]
[313166176,1706853039947,-155.00465014,0.0002414,2]
[313166177,1706853039955,-155.0,0.0002414,2]
[313166178,1706853039965,-309.4489101,0.0002414,2]
[313166179,1706853039976,-2214.64186464,0.00024141,2]
[313166180,1706853039987,-169.051891,0.00024482,2]
[313166181,1706853039996,-2424.76697351,0.000249,2]
[313166182,1706853040006,-501.4873498,0.0002496,5]
[313166183,1706853040015,-155.2664552,0.00024998,2]
[313166184,1706853040024,-1865.32745402,0.00025,3]
[313166185,1706853040033,-4732.83381239,0.00025,2]
[313166186,1706853040042,-7137.1390739,0.00025,2]
[313166187,1706853040051,-1830.14346345,0.00025,2]
[313166188,1706853040060,-237.05167122,0.00025,2]
[313166189,1706853040070,-14761.68427088,0.00025,10]
[313166190,1706853040080,-2284.20940829,0.00025,2]
[313166191,1706853040089,-1526.0,0.00025,2]
[313166192,1706853040099,-171.60662,0.00025,2]
[313166193,1706853040108,-151.0,0.00025052,2]
[313166194,1706853040117,-5000.0,0.00025427,2]
[313166195,1706853040126,-5000.0,0.00025427,2]
[313166196,1706853040135,-5000.0,0.00025427,2]
[313166197,1706853040145,-365.84544546,0.00025621,2]
[313166198,1706853040155,-155.60627565,0.00026,7]
[313166199,1706853040164,-4378.29101208,0.00026,2]
[313166200,1706853040173,-241.77459358,0.00026,2]
[313166201,1706853040182,-200.73409117,0.00026,2]
[313166202,1706853040191,-2000.0,0.00026203,2]
[313166203,1706853040201,-2000.0,0.00026203,2]
[313166204,1706853040210,-2000.0,0.00026203,2]
[313166205,1706853040219,-151.0,0.00026344,2]
[313166206,1706853040229,-447.77323152,0.00026368,2]
[313166207,1706853040238,-514.50999679,0.00026499,2]
[313166208,1706853040247,-500.0,0.00026499,2]
[313166209,1706853040257,-164.42453516,0.00026499,2]
[313166210,1706853040266,-500.0,0.00026499,2]
[313166211,1706853040275,-500.0,0.00026499,2]
[313166212,1706853040284,-500.0,0.00026499,2]
[313166213,1706853040294,-500.0,0.00026499,2]
[313166214,1706853040303,-514.50999679,0.00026499,2]
[313166215,1706853040312,-514.50999679,0.00026499,2]
[313166216,1706853040322,-514.50999679,0.00026499,2]
[313166217,1706853040331,-272.79235562,0.00026499,2]
[313166218,1706853040340,-500.0,0.00026499,2]
[313166219,1706853040349,-552.49744454,0.00026499,2]
[313166220,1706853040358,-317.29185161,0.00026499,2]
[313166221,1706853040367,-500.0,0.00026499,2]
[313166222,1706853040376,-514.50999679,0.00026499,2]
[313166223,1706853040385,-514.50999679,0.00026499,2]
[313166224,1706853040394,-514.50999679,0.00026499,2]
[313166225,1706853040403,-500.0,0.00026499,2]
[313166226,1706853040413,-514.50999679,0.00026499,2]
[313166227,1706853040422,-447.65915615,0.00026499,2]
[313166228,1706853040430,-514.50999679,0.00026499,2]
[313166229,1706853040439,-514.50999679,0.00026499,2]
[313166230,1706853040449,-500.0,0.00026499,2]
[313166231,1706853040458,-514.50999679,0.00026499,2]
[313166232,1706853040466,-211.17318948,0.00026499,2]
[313166233,1706853040475,-514.50999679,0.00026499,2]
[313166234,1706853040484,-514.50999679,0.00026499,2]
[313166235,1706853040493,-514.50999679,0.00026499,2]
[313166236,1706853040501,-514.50999679,0.00026499,2]
[313166237,1706853040510,-514.50999679,0.00026499,2]
[313166238,1706853040520,-514.50999679,0.00026499,2]
[313166239,1706853040529,-514.50999679,0.00026499,2]
[313166240,1706853040538,-514.50999679,0.00026499,2]
[313166241,1706853040547,-514.50999679,0.00026499,2]
[313166242,1706853040556,-514.50999679,0.00026499,2]
[313166243,1706853040565,-514.50999679,0.00026499,2]
[313166244,1706853040574,-514.50999679,0.00026499,2]
[313166245,1706853040582,-373.49193086,0.00026499,2]
[313166246,1706853040591,-3825.13018737,0.00026499,2]
[313166247,1706853040600,-3825.13018737,0.00026499,2]
[313166248,1706853040610,-3825.13018737,0.00026499,2]
[313166249,1706853040619,-500.0,0.00026499,2]
[313166250,1706853040628,-3825.13018737,0.00026499,2]
[313166251,1706853040638,-544.538031,0.00026499,2]
[313166252,1706853040647,-3825.13018737,0.00026499,2]
[313166253,1706853040656,-300.0,0.000265,2]
[313166254,1706853040665,-66000.0,0.000265,3]
[313166255,1706853040677,-627.67595541,0.00026696,2]
[313166256,1706853040686,-5000.0,0.00026856,2]
[313166257,1706853040696,-5000.0,0.00026856,2]
[313166258,1706853040705,-5000.0,0.00026856,2]
[313166259,1706853040715,-5000.0,0.00026856,2]
[313166260,1706853040725,-30000.0,0.000269,2]
[313166261,1706853040734,-6306.48344954,0.00026998,2]
[313166262,1706853040743,-1000.0,0.00027,27]
[313166263,1706853040752,-60269.6386362,0.00027,2]
[313166265,1706853040943,-4707.3613638,0.00027,2]
[313166266,1706853040953,-1693.66873122,0.00027,7]
[313166287,1706853044199,-213.84738694,0.00019412,2]
[313166288,1706853044208,-1306.33126878,0.00027,7]
[313166289,1706853044217,-191.15816382,0.00027,2]
[313166290,1706853044227,-300.0,0.00027,2]
[313166291,1706853044236,-1934.57794516,0.00027,3]
[313166292,1706853044245,-9145.55948231,0.00027045,4]
[313166293,1706853044254,-5527.89077293,0.00027297,2]
[313166300,1706853045978,-7028.17897204,0.00027297,2]
[313166301,1706853045990,-473.44901888,0.00027297,2]
[313166318,1706853381413,975.0,0.00028488,61]
[313166319,1706853381857,975.0,0.00028478,61]
[313166320,1706853382286,975.0,0.00028468,61]
[313166321,1706853741377,683.0,0.00028483,61]
[313166322,1706853741815,683.0,0.00028473,61]
[313166323,1706853742276,683.0,0.00028463,61]
[313166326,1706853957911,-4499.8,0.00031,120]
[313166332,1706854101375,478.0,0.00028483,61]
[313166333,1706854101810,478.0,0.00028473,61]
[313166334,1706854102304,478.0,0.00028463,61]
[313166411,1706854241318,-185.73963984,0.00022399,2]
[313166412,1706854241327,-156.15620761,0.00022499,2]
[313166413,1706854241336,-570.10319723,0.00022836,2]
[313166414,1706854241348,-261.546,0.00022836,2]
[313166429,1706854243423,-1987.88658953,0.00022836,2]
[313166431,1706854243433,-1584.12048282,0.00022837,2]
[313166433,1706854243445,-654.70847093,0.00022837,2]
[313166435,1706854243455,-387.91865616,0.00022837,2]
[313166439,1706854243607,-436.75284312,0.00022837,2]
[313166444,1706854246264,-2247.40888091,0.00022837,2]
[313166445,1706854246273,-184.098034,0.00023861,2]
[313166446,1706854246282,-167.62697216,0.00023991,2]
[313166447,1706854246291,-688.0,0.000242,2]
[313166448,1706854246300,-298.51548768,0.000249,2]
[313166449,1706854246309,-1278.46303195,0.00025,2]
[313166455,1706854581699,335.0,0.0002849,61]
[313166456,1706854582150,335.0,0.0002848,61]
[313166457,1706854582595,335.0,0.0002847,61]
[313166459,1706854941493,234.0,0.0002849,61]
[313166460,1706854942128,234.0,0.0002848,61]
[313166461,1706854942568,234.0,0.0002847,61]
[313166465,1706855301154,164.0,0.00028486,61]
[313166466,1706855301599,164.0,0.00028476,61]
[313166467,1706855302061,164.0,0.00028466,61]
[313166496,1706855432356,-159.09002618,0.00021901,2]
[313166497,1706855432366,-155.0,0.00021901,2]
[313166499,1706855432375,-149.67655742,0.00021901,2]
[313166525,1706855438583,-556.52643287,0.000219,2]
[313166526,1706855438593,-373.39578698,0.00021901,2]
[313166527,1706855438602,-213.84738694,0.00021902,2]
[313166528,1706855438613,-273.11559368,0.00021903,2]
[313166529,1706855438624,-2808.31407898,0.00021903,2]
[313166530,1706855438633,-175.52348304,0.00021904,2]
[313166531,1706855438643,-2036.85139165,0.00022,2]
[313166532,1706855438652,-155.0,0.00022413,2]
[313166533,1706855438661,-166.666666,0.00022414,2]
[313166534,1706855438671,-386.53252532,0.00022837,2]
[313166535,1706855438679,-787.60844371,0.00022862,2]
[313166536,1706855438689,-1261.83126137,0.00023,2]
[313166537,1706855438698,-155.0,0.00023363,4]
[313166538,1706855438707,-166.666666,0.00023433,2]
[313166539,1706855438717,-166.666666,0.00024451,2]
[313166540,1706855438726,-714.006188,0.00024658,2]
[313166541,1706855438735,-200.0,0.0002475,2]
[313166542,1706855438744,-200.0,0.0002475,2]
[313166543,1706855438754,-200.0,0.0002475,2]
[313166544,1706855438763,-200.0,0.0002475,2]
[313166545,1706855438773,-200.0,0.0002475,2]
[313166546,1706855438782,-200.0,0.0002475,2]
[313166547,1706855438792,-200.0,0.0002475,2]
[313166548,1706855438801,-200.0,0.0002475,2]
[313166549,1706855438811,-200.0,0.0002475,2]
[313166550,1706855438820,-200.0,0.0002475,2]
[313166551,1706855438829,-200.0,0.0002475,2]
[313166552,1706855438838,-200.0,0.0002475,2]
[313166553,1706855438847,-200.0,0.0002475,2]
[313166554,1706855438857,-200.0,0.0002475,2]
[313166555,1706855438866,-200.0,0.0002475,2]
[313166556,1706855438875,-200.0,0.0002475,2]
[313166557,1706855438884,-200.0,0.0002475,2]
[313166558,1706855438893,-200.0,0.0002475,2]
[313166559,1706855438903,-200.0,0.0002475,2]
[313166560,1706855438912,-200.0,0.0002475,2]
[313166561,1706855438923,-200.0,0.0002475,2]
[313166562,1706855438932,-200.0,0.0002475,2]
[313166563,1706855438941,-200.0,0.0002475,2]
[313166564,1706855438951,-200.0,0.0002475,2]
[313166565,1706855438960,-200.0,0.0002475,2]
[313166566,1706855438970,-200.0,0.0002475,2]
[313166567,1706855438979,-200.0,0.0002475,2]
[313166568,1706855438988,-200.0,0.0002475,2]
[313166569,1706855438998,-200.0,0.0002475,2]
[313166570,1706855439007,-200.0,0.0002475,2]
[313166571,1706855439017,-200.0,0.0002475,2]
[313166572,1706855439026,-200.0,0.0002475,2]
[313166573,1706855439036,-200.0,0.0002475,2]
[313166574,1706855439045,-200.0,0.0002475,2]
[313166575,1706855439054,-200.0,0.0002475,2]
[313166576,1706855439063,-200.0,0.0002475,2]
[313166577,1706855439072,-200.0,0.0002475,2]
[313166578,1706855439082,-200.0,0.0002475,2]
[313166579,1706855439091,-200.0,0.0002475,2]
[313166580,1706855439100,-200.0,0.0002475,2]
[313166581,1706855439110,-200.0,0.0002475,2]
[313166582,1706855439120,-200.0,0.0002475,2]
[313166583,1706855439129,-200.0,0.0002475,2]
[313166584,1706855439139,-200.0,0.0002475,2]